bitfinex-derivatives/quotes_SOLF0:USTF0_20250228
["timestamp","ask_amount","ask_price","bid_price","bid_amount"]
[1740730593095,14.68,128.4,128.22,212.18]
[1740730593402,3.7092,128.41,128.26,14.66]
[1740730593900,340.96872436,128.5,128.32,0.05594981]
[1740730593901,7.815e-05,128.35,128.32,0.05594981]
[1740730594107,128.78872436,128.5,128.32,0.05594981]
[1740730594108,1.8967,128.45,128.33,14.66]
[1740730594309,1.8967,128.45,128.34,0.1928]
[1740730594607,1.8967,128.45,128.27,14.66]
[1740730594809,14.66,128.46,128.27,14.66]
[1740730595210,38.1,128.46,128.27,14.66]
[1740730595510,0.054814,128.38,128.35,0.05090394]
[1740730595709,14.66,128.46,128.27,14.66]
[1740730595899,1.8524,128.44,128.27,14.66]
[1740730596105,0.05855533,128.38,128.35,0.05913809]
[1740730596503,1.8524,128.44,128.27,14.66]
[1740730596809,0.05517935,128.38,128.27,14.66]
[1740730597004,1.8524,128.44,128.27,14.66]
[1740730597810,1.8524,128.44,128.34,0.05224427]
[1740730597811,0.05051389,128.37,128.34,0.05224427]
[1740730598109,2.007,128.42,128.24,0.1928]
[1740730598511,7.7965,128.4,128.31,7.802]
[1740730598711,1.8876,128.39,128.24,0.1928]
[1740730599109,2.394e-05,128.33,128.3,0.03887806]
[1740730599305,2.394e-05,128.33,128.31,14.68]
[1740730599506,2.007,128.42,128.37,7.7983]
[1740730599706,1.8876,128.5,128.32,0.2477]
[1740730599913,2.007,128.49,128.32,0.2477]
[1740730600305,0.05603496,128.42,128.39,0.0552789]
[1740730600609,2.007,128.49,128.32,195.2477]
[1740730600806,2.007,128.49,128.32,0.2477]
[1740730601111,0.04913313,128.42,128.37,7.7978]
[1740730601311,0.04913313,128.42,128.33,212.14]
[1740730601513,0.04913313,128.42,128.38,0.05134923]
[1740730601712,2.007,128.49,128.38,0.05134923]
[1740730601904,0.05088467,128.41,128.38,0.05134923]
[1740730602109,2.007,128.49,128.33,212.14]
[1740730602313,2.007,128.49,128.38,0.05448876]
[1740730602510,0.05896605,128.41,128.38,0.05448876]
[1740730602812,2.007,128.49,128.33,212.14]
[1740730603009,0.05647498,128.41,128.38,0.0538152]
[1740730603310,2.007,128.49,128.33,212.14]
[1740730603311,2.007,128.49,128.33,407.14]
[1740730603515,2.007,128.49,128.33,212.14]
[1740730604612,0.05790897,128.42,128.4,0.05141641]
[1740730605014,2.007,128.49,128.33,212.14]
[1740730605216,0.05372728,128.42,128.4,0.05289587]
[1740730605514,2.007,128.49,128.38,7.7977]
[1740730605808,2.007,128.49,128.33,212.14]
[1740730606014,0.05798338,128.45,128.42,0.04994035]
[1740730606211,2.007,128.49,128.42,0.04994035]
[1740730606411,0.05862236,128.45,128.42,0.04994035]
[1740730608118,7.85222236,128.45,128.42,0.04994035]
[1740730608306,0.05862236,128.45,128.33,212.14]
[1740730608708,2.007,128.49,128.33,212.14]
[1740730609109,7.7966,128.4,128.33,212.14]
[1740730609314,2.007,128.49,128.33,212.14]
[1740730609315,14.7,128.46,128.33,7.8006]
[1740730609614,14.7,128.46,128.31,32.25487717]
[1740730609615,0.05765803,128.38,128.35,0.05831374]
[1740730609814,7.7983,128.37,128.35,0.05831374]
[1740730610014,7.7983,128.37,128.32,7.801]
[1740730610212,7.85729936,128.37,128.35,0.05267613]
[1740730610509,0.05899936,128.37,128.35,0.05267613]
[1740730610715,0.05899936,128.37,128.31,32.25487717]
[1740730611210,7.85749936,128.37,128.32,7.8013]
[1740730611416,0.05899936,128.37,128.26,117.05248976]
[1740730611814,14.68,128.39,128.26,117.05248976]
[1740730612111,0.05765114,128.33,128.3,0.05223656]
[1740730612317,7.85885114,128.33,128.3,0.05223656]
[1740730612516,7.85885114,128.33,128.28,7.8037]
[1740730612517,7.8012,128.33,128.28,7.8037]
[1740730612718,7.85537332,128.33,128.3,0.05084871]
[1740730612913,7.802,128.31,128.3,0.05084871]
[1740730613120,0.05417332,128.33,128.26,117.05248976]
[1740730613521,14.7,128.32,128.26,107.87128976]
[1740730613716,190.0,128.31,128.26,98.69278976]
[1740730613919,14.7,128.32,128.26,89.51608976]
[1740730614219,7.8044,128.27,128.26,65.02338976]
[1740730614616,7.8066,128.24,128.19,31.96224981]
[1740730614820,0.05087911,128.3,128.19,31.96224981]
[1740730615120,190.0,128.31,128.19,31.96224981]
[1740730615318,0.05819508,128.26,128.19,31.96224981]
[1740730616216,14.84,128.33,128.2,1.9791]
[1740730617012,15.0,128.39,128.2,1.9791]
[1740730617217,1.39276768,128.38,128.2,1.9791]
[1740730617414,7.7992,128.36,128.28,0.05558215]
[1740730617617,0.05422756,128.31,128.28,0.05558215]
[1740730617917,0.05422756,128.31,128.28,7.8036]
[1740730618117,0.05422756,128.31,128.28,0.05180871]
[1740730618319,191.998,128.38,128.28,0.05180871]
[1740730618521,7.7985,128.37,128.28,0.05180871]
[1740730618713,191.998,128.38,128.27,7.804]
[1740730619117,7.7994,128.36,128.27,7.804]
[1740730619517,0.05180404,128.33,128.3,0.05721356]
[1740730621019,193.7879,128.42,128.3,0.05721356]
[1740730621321,1.39500032,128.41,128.2,1.9791]
[1740730622219,0.0507977,128.32,128.29,0.05614333]
[1740730622620,205.2,128.4,128.22,1.9633]
[1740730622816,0.04962521,128.32,128.29,0.05649139]
[1740730623223,7.8013,128.33,128.25,7.8054]
[1740730623417,0.05300515,128.32,128.29,0.05951646]
[1740730623816,1.39547994,128.37,128.22,1.9633]
[1740730624013,0.05768493,128.32,128.29,0.0559111]
[1740730624316,190.0,128.38,128.22,1.9633]
[1740730624521,209.0279,128.42,128.22,196.9633]
[1740730624723,19.0279,128.42,128.22,196.9633]
[1740730624925,26.8238,128.42,128.36,7.7989]
[1740730625317,7.7918,128.48,128.41,7.7959]
[1740730625621,0.05238266,128.4,128.31,3.9566]
[1740730625918,85.26279399,128.49,128.43,0.056759]
[1740730626324,85.26279399,128.49,128.32,1.8643]
[1740730626720,85.26279399,128.49,128.32,196.8643]
[1740730627120,3.526e-05,128.42,128.39,0.05900078]
[1740730627421,85.26279399,128.49,128.38,15.3]
[1740730627619,85.26279399,128.49,128.39,3.9566]
[1740730628118,85.26279399,128.49,128.4,1.8643]
[1740730628319,15.36,128.57,128.43,0.05007792]
[1740730628725,15.36,128.57,128.4,1.8643]
[1740730629318,15.36,128.57,128.49,7.7907]
[1740730629523,0.05014121,128.5,128.47,0.05683635]
[1740730629915,15.36,128.57,128.4,1.8643]
[1740730630116,0.05411546,128.5,128.47,0.0526094]
[1740730630614,15.36,128.57,128.4,1.8643]
[1740730630820,0.04932138,128.5,128.47,0.05002219]
[1740730631216,1.39323952,128.55,128.4,1.8643]
[1740730631426,0.05746743,128.5,128.47,0.05050647]
[1740730631821,0.05746743,128.5,128.4,1.8643]
[1740730632124,1.39355479,128.53,128.39,3.9566]
[1740730632324,235.42,128.52,128.39,3.9566]
[1740730632623,3.28045479,128.51,128.39,3.9566]
[1740730632924,0.05763018,128.46,128.35,1.9029]
[1740730633123,15.32,128.45,128.31,3.9769]
[1740730633324,193.9207,128.44,128.31,3.9769]
[1740730633621,7.7996,128.35,128.27,1.9029]
[1740730633821,7.7996,128.35,128.22,19.24021099]
[1740730633822,15.3,128.37,128.23,3.9769]
[1740730634130,15.3,128.37,128.23,133.07621889]
[1740730634316,0.04927637,128.35,128.32,0.04925109]
[1740730634515,0.04927637,128.35,128.23,133.07621889]
[1740730634715,15.3,128.37,128.23,133.07621889]
[1740730635322,7.8003,128.34,128.25,7.8055]
[1740730635627,15.3,128.37,128.23,133.07621889]
[1740730635827,0.05045135,128.31,128.28,0.05866479]
[1740730636229,192.0166,128.36,128.23,133.07621889]
[1740730636428,2.0166,128.36,128.23,133.07621889]
[1740730636728,0.05912648,128.31,128.28,0.05189934]
[1740730637031,0.05912648,128.31,128.23,133.07621889]
[1740730637524,3.914,128.36,128.28,0.05624547]
[1740730637722,0.05774904,128.28,128.22,17.68039193]
[1740730638123,15.44,128.29,128.22,17.68039193]
[1740730638623,3.33577795,128.28,128.22,17.68039193]
[1740730638928,1.9402,128.28,128.22,15.06999193]
[1740730639128,190.05226677,128.27,128.22,15.06999193]
[1740730639330,7.8055,128.26,128.22,7.38583165]
[1740730639631,190.05226677,128.27,128.22,7.38583165]
[1740730640233,0.05226677,128.27,128.22,7.38583165]
[1740730640530,0.05226677,128.27,128.23,0.05642996]
[1740730640925,0.05226677,128.27,128.23,5.83742996]
[1740730641732,0.05226677,128.27,128.23,0.05642996]
[1740730642122,7.8063,128.24,128.23,0.05642996]
[1740730642523,3.9,128.24,128.23,0.05642996]
[1740730642726,16.43226677,128.27,128.23,0.05642996]
[1740730643423,0.05226677,128.27,128.23,0.05642996]
[1740730644020,0.05226677,128.27,128.23,5.83142996]
[1740730644225,94.35304167,128.33,128.23,5.83142996]
[1740730644427,85.26279399,128.46,128.23,5.83142996]
[1740730644628,85.26279399,128.46,128.23,217.955]
[1740730645023,85.26279399,128.46,128.23,219.51469741]
[1740730645627,0.05560338,128.36,128.33,0.05596646]
[1740730645932,85.26279399,128.46,128.28,16.96]
[1740730646330,1.55702608,128.45,128.23,219.51469741]
[1740730646529,7.8002,128.34,128.23,5.775]
[1740730646730,16.96,128.38,128.23,5.775]
[1740730647232,16.96,128.38,128.27,0.05856837]
[1740730647233,0.05019199,128.3,128.27,0.05856837]
[1740730647638,16.96,128.38,128.23,5.775]
[1740730647838,1.55702608,128.45,128.23,5.775]
[1740730648030,18.49702608,128.45,128.27,0.05165211]
[1740730648238,16.94,128.45,128.23,5.775]
[1740730648427,212.18,128.48,128.24,1.55957579]
[1740730648633,212.18,128.48,128.37,7.7983]
[1740730648833,212.18,128.48,128.38,1.9763]
[1740730649033,16.94,128.51,128.38,1.9763]
[1740730649339,0.05093765,128.44,128.42,0.05647837]
[1740730649541,16.92,128.54,128.42,0.05647837]
[1740730649733,16.92,128.54,128.39,1.9564]
[1740730650638,213.88838763,128.56,128.39,1.9564]
[1740730650941,0.0503294,128.48,128.45,0.0540864]
[1740730651140,213.88838763,128.56,128.45,0.0540864]
[1740730651438,213.88838763,128.56,128.4,18.7589]
[1740730651639,85.26279399,128.57,128.4,18.7589]
[1740730651835,85.26279399,128.57,128.48,7.7915]
[1740730652035,85.26279399,128.57,128.49,1.8389]
[1740730652442,0.05824828,128.54,128.52,0.05731903]
[1740730653036,94.15234859,128.6,128.49,1.8389]
[1740730653338,0.05565915,128.54,128.52,5.812e-05]
[1740730653541,7.7886,128.53,128.52,5.812e-05]
[1740730653743,0.1067,128.53,128.38,1.931]
[1740730654535,1.3941241,128.52,128.38,1.931]
[1740730654737,0.05956794,128.47,128.38,1.931]
[1740730654942,16.92,128.46,128.33,1.9725]
[1740730655145,17.0267,128.46,128.33,3.9035]
[1740730655441,7.7966,128.4,128.33,3.9035]
[1740730655838,7.7949,128.43,128.33,3.9035]
[1740730656033,17.0267,128.46,128.33,1.931]
[1740730656240,17.0267,128.46,128.28,1.9725]
[1740730656441,18.58360487,128.46,128.28,5.7464]
[1740730656636,0.05125171,128.41,128.38,0.05725283]
[1740730656943,212.0,128.42,128.27,32.02254281]
[1740730657132,212.0,128.42,128.25,1.846]
[1740730657133,1.39438982,128.41,128.25,1.846]
[1740730657641,1.39438982,128.41,128.25,9.6515]
[1740730657842,1.39438982,128.41,128.25,1.846]
[1740730658242,0.05554989,128.34,128.32,0.05067509]
[1740730658646,212.0,128.42,128.25,18.726]
[1740730659144,0.05403154,128.34,128.32,0.05305229]
[1740730659642,1.39481976,128.41,128.25,18.726]
[1740730659945,0.05858052,128.34,128.32,0.05687898]
[1740730660342,212.0,128.42,128.25,1.846]
[1740730660743,212.0,128.42,128.32,0.05483293]
[1740730660744,0.05516679,128.34,128.32,0.05483293]
[1740730661141,212.0,128.42,128.25,1.846]
[1740730661340,1.39480465,128.41,128.25,1.846]
[1740730661542,0.05650576,128.34,128.32,0.05382678]
[1740730662042,1.39477346,128.41,128.24,1.9487]
[1740730662242,0.05642343,128.34,128.32,0.05370967]
[1740730662746,212.0,128.42,128.26,16.9]
[1740730662944,219.7954,128.42,128.26,16.9]
[1740730663147,212.0,128.42,128.26,16.9]
[1740730663445,7.7961,128.41,128.3,7.8021]
[1740730663639,212.0,128.42,128.26,16.9]
[1740730663841,0.05990946,128.37,128.34,0.05138584]
[1740730664241,0.05990946,128.37,128.29,7.8027]
[1740730664640,7.7967,128.4,128.34,0.05855964]
[1740730664838,212.0,128.42,128.34,0.05855964]
[1740730665142,1.39470174,128.41,128.34,0.05855964]
[1740730665348,0.05744596,128.39,128.24,1.9487]
[1740730665646,0.05744596,128.39,128.36,0.05291111]
[1740730665848,212.0,128.42,128.24,1.9487]
[1740730666048,0.05522932,128.39,128.36,0.05059489]
[1740730666248,212.0,128.42,128.36,0.05059489]
[1740730666449,212.0,128.42,128.24,1.9487]
[1740730666644,0.05970771,128.39,128.24,1.9487]
[1740730666948,7.7963,128.41,128.31,7.8015]
[1740730667144,212.0,128.42,128.31,7.8015]
[1740730667348,1.39468009,128.41,128.24,1.9487]
[1740730668149,0.05959353,128.34,128.31,0.0555227]
[1740730668548,0.05959353,128.34,128.23,3.8808]
[1740730668549,3.9,128.34,128.23,3.8808]
[1740730668752,7.8021,128.31,128.23,11.6876]
[1740730669050,0.208,128.36,128.2,1.8897]
[1740730669248,7.8038,128.29,128.2,9.6983]
[1740730669453,0.208,128.36,128.2,9.6983]
[1740730669651,2.95381933,128.35,128.19,31.84856863]
[1740730669857,0.05199191,128.26,128.23,0.05830105]
[1740730670058,0.05199191,128.26,128.18,90.62521636]
[1740730670059,1.55823918,128.35,128.18,5.6957]
[1740730670357,1.55823918,128.35,128.23,0.05501144]
[1740730670752,7.8009,128.33,128.18,5.6957]
[1740730670955,1.55823918,128.35,128.18,5.6957]
[1740730671359,0.05560142,128.28,128.25,0.05434642]
[1740730671860,1.55823918,128.35,128.23,7.8068]
[1740730672053,0.05365594,128.28,128.25,0.05509275]
[1740730672450,7.7996,128.35,128.27,7.804]
[1740730672760,0.05110998,128.28,128.25,0.05584721]
[1740730672960,0.05110998,128.28,128.18,5.6957]
[1740730673258,0.208,128.36,128.18,5.6957]
[1740730673554,0.208,128.36,128.25,0.05438432]
[1740730673757,0.05222382,128.28,128.25,0.05438432]
[1740730673950,228.98,128.27,128.11,104.66248499]
[1740730674152,23.44,128.26,127.97,120.21251233]
[1740730674349,1.39403907,128.25,127.97,120.21251233]
[1740730674854,16.86,128.24,128.1,85.36172989]
[1740730675058,0.05849423,128.17,128.15,0.05911398]
[1740730675561,3.9,128.17,128.1,85.36172989]
[1740730675861,0.05643042,128.17,128.15,0.05653111]
[1740730676260,0.05643042,128.17,128.1,85.36172989]
[1740730676463,0.05643042,128.17,128.15,0.05744869]
[1740730676755,16.86,128.16,128.1,85.36172989]
[1740730676959,16.86,128.16,128.03,3.6955]
[1740730676960,48.7850292,128.16,128.03,3.6955]
[1740730677159,48.7850292,128.16,128.15,0.05022787]
[1740730677563,0.05770872,128.11,128.0,1.915]
[1740730677757,0.05770872,128.11,128.0,0.05022787]
[1740730677959,10.62407686,128.12,128.0,0.05022787]
[1740730678152,10.62407686,128.12,128.02,0.05022787]
[1740730678558,10.62407686,128.12,127.96,1.9122]
[1740730678861,0.05378614,128.08,128.06,0.0507852]
[1740730679250,20.84,128.08,127.96,1.9122]
[1740730679456,16.94,128.08,128.06,0.04929685]
[1740730679660,190.0,128.07,128.06,0.04929685]
[1740730679852,190.0,128.06,127.9,1.9122]
[1740730680052,190.0,128.05,127.95,0.05022787]
[1740730680266,190.0,128.04,127.93,0.05022787]
[1740730680561,200.62407686,128.04,127.94,0.05022787]
[1740730680762,190.0,128.03,127.94,0.05022787]
[1740730680959,190.0,128.03,127.96,0.05022787]
[1740730681259,190.0,128.03,127.91,3.9106]
[1740730681260,0.05423779,128.0,127.91,3.9106]
[1740730681660,10.62407686,128.04,127.91,3.9106]
[1740730682657,1.598e-05,127.99,127.91,3.9106]
[1740730682965,1.598e-05,127.99,127.98,7.8221]
[1740730683153,7.686e-05,127.99,127.93,17.14]
[1740730683358,159.51121735,128.02,127.93,17.14]
[1740730683560,156.46061735,128.02,127.93,17.14]
[1740730683759,153.41011735,128.02,127.93,9.35599404]
[1740730684062,153.41011735,128.02,127.96,0.05509567]
[1740730684270,128.78872436,128.04,127.97,212.46]
[1740730684561,268.30984242,128.08,127.97,407.46]
[1740730684764,268.30984242,128.08,127.97,216.36]
[1740730684966,1.8529,128.24,127.97,216.36]
[1740730685168,9.62710705,128.24,127.98,1.56274417]
[1740730685469,83.62936001,128.16,128.01,0.05110768]
[1740730685667,83.62936001,128.16,128.02,18.76225589]
[1740730685968,91.4036374,128.16,128.03,9.38113387]
[1740730686268,91.4036374,128.16,128.03,1.56213387]
[1740730686967,0.05927121,128.11,128.08,0.05763613]
[1740730687363,7.8335486,128.11,128.03,1.56213387]
[1740730687565,3.8271,128.1,128.03,1.56213387]
[1740730687867,3.8271,128.1,127.96,212.44]
[1740730688068,11.60137739,128.1,127.96,212.44]
[1740730688666,11.60137739,128.1,127.96,220.2628]
[1740730688867,0.05321771,128.04,128.02,0.05638949]
[1740730689370,21.0671,128.1,127.96,212.44]
[1740730689558,28.84137739,128.1,127.96,212.44]
[1740730689763,0.05525529,128.04,128.02,0.05660631]
[1740730690166,0.05525529,128.04,127.96,212.44]
[1740730690371,21.0671,128.1,127.96,212.44]
[1740730690571,0.05093418,128.04,128.02,0.04992495]
[1740730690767,3.8271,128.1,128.02,0.04992495]
[1740730690965,3.8271,128.1,127.99,17.24]
[1740730690966,7.77427739,128.1,127.99,17.24]
[1740730691462,7.77427739,128.1,127.96,212.44]
[1740730691667,3.9859,128.09,127.96,212.44]
[1740730692065,0.05897472,128.04,128.02,0.05832582]
[1740730692569,3.8874,128.16,128.02,3.95832582]
[1740730692769,11.66167739,128.16,128.02,0.05832582]
[1740730692964,11.66167739,128.16,127.99,17.24]
[1740730693767,0.05980145,128.09,128.06,0.05893327]
[1740730693964,1.45e-06,128.09,128.08,7.816]
[1740730694168,1.9512,128.21,128.08,3.9]
[1740730694369,9.72547739,128.21,128.07,229.72]
[1740730694574,9.72547739,128.21,128.15,7.8116]
[1740730694771,7.77427739,128.21,128.07,229.72]
[1740730694972,5.8253,128.26,128.07,229.72]
[1740730695171,11.72857739,128.26,128.07,229.72]
[1740730695371,0.05215537,128.18,128.15,0.05426927]
[1740730695673,2.0152,128.29,128.23,7.8068]
[1740730695972,7.77427739,128.29,128.18,212.46]
[1740730696370,2.0152,128.37,128.18,212.46]
[1740730696572,9.78947739,128.37,128.18,214.02030581]
[1740730697175,0.05425727,128.29,128.26,0.05681451]
[1740730697371,2.0152,128.37,128.26,0.05681451]
[1740730697674,9.78947739,128.37,128.25,17.18]
[1740730698376,9.78947739,128.37,128.28,84.40665719]
[1740730698671,7.77427739,128.37,128.28,84.40665719]
[1740730698875,0.05372835,128.32,128.3,0.05343569]
[1740730699280,3.812,128.45,128.3,216.29343569]
[1740730699477,11.58627739,128.45,128.3,212.39343569]
[1740730699680,3.812,128.45,128.3,411.24]
[1740730699879,11.58628257,128.45,128.31,1.55872496]
[1740730700075,9.63408257,128.45,128.31,1.55872496]
[1740730700379,7.77428257,128.45,128.31,1.55872496]
[1740730701078,0.05990794,128.39,128.37,0.05408695]
[1740730701474,3.8527,128.52,128.37,3.9]
[1740730701673,3.299e-05,128.39,128.37,0.0579006]
[1740730701878,3.8527,128.52,128.37,3.9579006]
[1740730702181,11.62698257,128.52,128.36,84.40665719]
[1740730703178,0.05829797,128.45,128.43,0.05428914]
[1740730703578,3.8527,128.52,128.37,17.14]
[1740730703778,0.0537782,128.45,128.43,0.04942614]
[1740730704181,7.77428257,128.45,128.42,84.40665719]
[1740730704378,7.83355117,128.45,128.43,0.05949253]
[1740730704577,3.9592686,128.45,128.42,49.12027462]
[1740730704783,3.9592686,128.45,128.41,114.64711184]
[1740730704976,0.0592686,128.45,128.41,89.66551184]
[1740730707376,0.0592686,128.45,128.42,0.0531935]
[1740730707578,3.9592686,128.45,128.42,0.0531935]
[1740730707780,0.0592686,128.45,128.42,0.0531935]
[1740730708573,3.9592686,128.45,128.42,0.0531935]
[1740730708783,24.8946,128.44,128.42,0.0531935]
[1740730708982,17.1,128.44,128.42,0.0531935]
[1740730709178,21.0,128.44,128.42,0.0531935]
[1740730709382,17.1,128.44,128.42,0.0531935]
[1740730709886,0.0592686,128.45,128.42,0.0531935]
[1740730710484,3.9592686,128.45,128.42,0.0531935]
[1740730710782,0.0592686,128.45,128.42,0.0531935]
[1740730710983,3.9592686,128.45,128.42,0.0531935]
[1740730711184,7.7947,128.43,128.42,0.0531935]
[1740730711583,11.6947,128.43,128.42,9.35e-05]
[1740730711788,3.9,128.43,128.33,1.8952]
[1740730711987,17.08,128.44,128.31,1.55872496]
[1740730712281,190.0,128.43,128.28,2.0003]
[1740730712482,17.08,128.44,128.22,212.06]
[1740730712687,1.39515223,128.43,128.23,7.8068]
[1740730712887,7.7998,128.35,128.22,212.06]
[1740730713192,0.05080092,128.34,128.32,0.05082477]
[1740730713491,190.0,128.43,128.24,17.06]
[1740730713681,190.0,128.43,128.24,212.06]
[1740730713884,17.06,128.45,128.32,0.05474978]
[1740730713885,0.05312208,128.34,128.32,0.05474978]
[1740730714081,17.06,128.45,128.32,0.05474978]
[1740730714386,17.06,128.45,128.24,212.06]
[1740730714586,24.8536,128.45,128.24,212.06]
[1740730714886,17.06,128.45,128.31,7.8014]
[1740730715191,17.06,128.45,128.24,212.06]
[1740730715383,0.05888773,128.39,128.37,0.05062547]
[1740730715886,3.9,128.39,128.24,17.06]
[1740730716086,190.0,128.43,128.24,17.06]
[1740730716387,0.05108825,128.39,128.22,212.06]
[1740730716589,190.0,128.38,128.22,212.06]
[1740730716886,207.02,128.37,128.23,7.8068]
[1740730717090,207.02,128.37,128.19,2.0003]
[1740730717390,192.95383688,128.36,128.19,2.0003]
[1740730717584,0.05476148,128.29,128.27,0.05710786]
[1740730717888,1.55811779,128.36,128.27,0.05710786]
[1740730718188,94.31001181,128.4,128.2,17.0]
[1740730719089,0.05663981,128.31,128.29,0.05153562]
[1740730719287,94.31001181,128.4,128.29,0.05153562]
[1740730719492,17.0,128.45,128.29,0.05153562]
[1740730719687,212.1,128.46,128.29,195.05153562]
[1740730719886,17.0,128.5,128.29,195.0]
[1740730720489,7.7928,128.47,128.29,195.0]
[1740730720791,306.3484502,128.54,128.38,0.0526624]
[1740730720792,0.05158263,128.41,128.38,0.0526624]
[1740730720994,7.7912,128.49,128.38,0.0526624]
[1740730721186,16.98,128.53,128.39,7.7971]
[1740730721490,7.7912,128.49,128.39,2.016]
[1740730721692,16.98,128.53,128.39,9.813]
[1740730721988,1.39386024,128.52,128.28,17.0]
[1740730722193,0.05111262,128.47,128.29,2.016]
[1740730722591,1.39386024,128.51,128.29,2.016]
[1740730722892,0.1166,128.5,128.29,2.016]
[1740730723091,1.39386024,128.49,128.29,2.016]
[1740730723288,0.1166,128.5,128.29,9.8187]
[1740730723489,2.9508666,128.49,128.29,2.016]
[1740730723785,0.05245983,128.4,128.38,0.05561496]
[1740730723989,1.55654136,128.49,128.38,0.05561496]
[1740730724289,1.55654136,128.49,128.39,7.7966]
[1740730724488,1.55654136,128.49,128.29,2.016]
[1740730724489,1.55654136,128.49,128.36,229.02]
[1740730725089,18.66855556,128.56,128.36,229.02]
[1740730725289,18.66855556,128.56,128.41,0.0492725]
[1740730725691,18.66855556,128.56,128.36,229.02]
[1740730726194,18.66855556,128.56,128.37,2.0139]
[1740730726393,0.1166,128.55,128.37,2.0139]
[1740730726693,7.7952,128.43,128.37,2.0139]
[1740730726889,0.05277041,128.48,128.37,2.0139]
[1740730727091,1.39393678,128.54,128.3,1.8845]
[1740730727295,7.7968,128.4,128.39,0.05144632]
[1740730727490,0.05366743,128.44,128.39,0.05144632]
[1740730727787,0.05366743,128.44,128.31,2.0139]
[1740730727994,0.1166,128.47,128.4,0.05661359]
[1740730728588,0.0552481,128.45,128.31,2.0139]
[1740730728988,1.55702608,128.45,128.3,1.8845]
[1740730729597,1.39489797,128.44,128.3,1.8845]
[1740730729897,1.55702608,128.45,128.3,1.8845]
[1740730730093,0.05894099,128.38,128.36,0.05591063]
[1740730730497,1.55702608,128.45,128.31,1.9929]
[1740730730700,1.55702608,128.45,128.32,1.842]
[1740730730895,0.05203806,128.38,128.36,0.05007166]
[1740730731094,7.7983,128.37,128.36,0.05007166]
[1740730731295,190.0,128.44,128.32,1.842]
[1740730731597,7.7994,128.36,128.35,0.05996848]
[1740730731797,0.05025189,128.38,128.2,228.88]
[1740730732000,16.84,128.39,128.2,228.88]
[1740730732994,8.227e-05,128.31,128.28,0.05187759]
[1740730733296,206.82,128.43,128.21,1.43361029]
[1740730733501,7.7972,128.39,128.31,7.8015]
[1740730733701,16.82,128.43,128.32,5.822]
[1740730733900,16.82,128.43,128.32,3.9033]
[1740730734301,0.05647232,128.39,128.36,0.05423227]
[1740730735605,7.7983,128.37,128.36,0.05423227]
[1740730735999,0.05647232,128.39,128.36,0.05423227]
[1740730737303,0.1166,128.47,128.36,0.05423227]
[1740730737700,1.55690487,128.46,128.33,1.9187]
[1740730737902,16.76,128.45,128.33,1.9187]
[1740730738497,0.05136897,128.4,128.38,0.05506025]
[1740730738905,7.7941,128.44,128.38,0.05506025]
[1740730739203,0.05222779,128.4,128.38,0.05506025]
[1740730739605,16.76,128.45,128.38,0.05506025]
[1740730739908,0.05105682,128.4,128.38,0.05506025]
[1740730740102,7.7963,128.41,128.38,0.05506025]
[1740730740407,260.1304321,128.51,128.38,0.05506025]
[1740730740604,31.4882321,128.51,128.38,0.05506025]
[1740730740802,31.3704321,128.51,128.34,407.04]
[1740730741001,39.1604321,128.51,128.42,7.7952]
[1740730741207,39.1604321,128.51,128.43,3.8246]
[1740730741208,31.3704321,128.51,128.43,3.8246]
[1740730741502,39.1608321,128.51,128.43,3.8246]
[1740730741804,0.05042869,128.48,128.46,0.05051662]
[1740730741999,25.2498321,128.51,128.46,0.05051662]
[1740730742205,22.1887321,128.51,128.46,7.84341662]
[1740730742406,22.1887321,128.56,128.46,0.05051662]
[1740730743007,0.1178,128.55,128.43,3.8246]
[1740730743204,0.05371145,128.52,128.5,0.05988937]
[1740730743905,7.84351145,128.52,128.5,0.05988937]
[1740730744209,0.05371145,128.52,128.5,0.05988937]
[1740730744398,3.95371145,128.52,128.43,3.8246]
[1740730744602,0.05371145,128.52,128.38,1.856]